{"text_format":"2","workbook":"xlsx","n_sheets":3,"sheets":["Sorted by Committee","Sorted by Chair First Name","TMA PTO Exceutive Board"],"not_rendered":{"charts":0,"images":0,"macros":0,"external_links":0,"defined_names":0,"comments":0,"pivot_tables":0},"unopened":[],"bounds":{"document_bytes":16777216,"sheet_cells":100000,"run_cost":"one","rows_first":2000,"rows_last":500,"rows_between":2000,"halvings":0,"cell_chars":16384,"cell_head_chars":4096},"cells_cut":0,"cells_raw":0,"read":"whole","date_system":"1900"}

{"sheet":"Sorted by Committee","index":0,"n_rows":69,"n_cols":5,"rows_kept":69,"cut":false,"hidden":false,"merged":[]}
[null,"Committee","2017-2018","Email","Phone"]
[1.0,"5th Grade Boys Guy Stuff Night"," "," "," "]
[2.0,"5th Grade Promotion","Kari Williams","simonsen.kari@gmail.com"]
[null,null,"Caitlin Reid"]
[3.0,"5th Grade Tea","Antoinette Hewitt",{"$f":"HYPERLINK(\"mailto:antoinette.hewitt@kutakrock.com#\",\"antoinette.hewitt@kutakrock.com\")","v":"antoinette.hewitt@kutakrock.com"},"917-9873"]
[null,null,"Chantel Collins",{"$f":"HYPERLINK(\"mailto:kevinandchantel@hotmail.com#\",\"kevinandchantel@hotmail.com\")","v":"kevinandchantel@hotmail.com"},"669-4355"]
[4.0,"5th Grade Gift","Kate Kersten","katekersten24@gmail.com"," "]
[null,null,"Nicole Dunn"]
[null,null,"Antoinette Hewitt"]
[5.0,"After School Enrichment","Naomi Halili-Dove",{"$f":"HYPERLINK(\"mailto:naomidove@mac.com#\",\"naomidove@mac.com\")","v":"naomidove@mac.com"},"932-5786"]
[6.0,"Back to School Night Event Coordinator","Sue Martin",{"$f":"HYPERLINK(\"mailto:suemartin6710@gmail.com#\",\"suemartin6710@gmail.com\")","v":"suemartin6710@gmail.com"},"832-8640"]
[7.0,"Box Tops for Education","Cindy Kanchanapoomi","cckanchan@yahoo.com"]
[8.0,"Cards for Cash","Chantel Collins",{"$f":"HYPERLINK(\"mailto:kevinandchantel@hotmail.com#\",\"kevinandchantel@hotmail.com\")","v":"kevinandchantel@hotmail.com"},"669-4355"]
[9.0,"Community Service","Helen Kwon",{"$f":"HYPERLINK(\"mailto:helenhkwon@yahoo.com#\",\"helenhkwon@yahoo.com\")","v":"helenhkwon@yahoo.com"}," "]
[10.0,"Copy Coordinator","Claudia Chavez",{"$f":"HYPERLINK(\"mailto:claudinechf@gmail.com#\",\"claudinechf@gmail.com\")","v":"claudinechf@gmail.com"},"640-1125"]
[11.0,"Dining for Dollars","Nicole Hodge",{"$f":"HYPERLINK(\"mailto:nicolesemail@gmail.com#\",\"nicolesemail@gmail.com\")","v":"nicolesemail@gmail.com"},"669-2976"]
[12.0,"Dinosaur Dash","Shannon Valentino","shantino77@gmail.com","654-9498"]
[13.0,"Directory","Michel Mikhael",{"$f":"HYPERLINK(\"mailto:celaughlin@pacbell.net#\",\"michel_mikhael@hotmail.com\")","v":"michel_mikhael@hotmail.com"}]
[14.0,"Disaster Preparedness","Laurie Brooks",{"$f":"HYPERLINK(\"mailto:laurie.brooks@cox.net#\",\"laurie.brooks@cox.net\")","v":"laurie.brooks@cox.net"},"389-6775"]
[15.0,"Electronic Sign"]
[16.0,"Family Nights","Melissa Brosch",{"$f":"HYPERLINK(\"mailto:mbrosch@calvarylife.org#\",\"mbrosch@calvarylife.org\")","v":"mbrosch@calvarylife.org"}]
[null,null,"Gina Rae",{"$f":"HYPERLINK(\"mailto:ginamarierae@gmail.com#\",\"ginamarierae@gmail.com\")","v":"ginamarierae@gmail.com"}]
[17.0,"F.U.D.G.E. Night","Chandrea Dixon",{"$f":"HYPERLINK(\"mailto:chandreadixon@gmail.com#\",\"chandreadixon@gmail.com\")","v":"chandreadixon@gmail.com"}," "]
[null,null,"Lily Castillo",{"$f":"HYPERLINK(\"mailto:castillofam24@gmail.com#\",\"castillofam24@gmail.com\")","v":"castillofam24@gmail.com"},"949 648 2286"]
[18.0,"Foreign Language Program","Stephanie Garcia",{"$f":"HYPERLINK(\"mailto:stephbowers@yahoo.com#\",\"stephbowers@yahoo.com\")","v":"stephbowers@yahoo.com"},"244-7775"]
[null,null,"Lauren Hilborn",{"$f":"HYPERLINK(\"mailto:8hilborn@sbcglobal.net#\",\"8hilborn@sbcglobal.net\")","v":"8hilborn@sbcglobal.net"},"393-6929"]
[null,null,"Kate Kersten",{"$f":"HYPERLINK(\"mailto:katekersten24@gmail.com#\",\"katekersten24@gmail.com\")","v":"katekersten24@gmail.com"},"313-6163"]
[19.0,"Garden and Nature Center","Brandon Dove",{"$f":"HYPERLINK(\"mailto:tmagarden@ocorganicgardenblog.com#\",\"brandon.dove@gmail.com\")","v":"brandon.dove@gmail.com"},"932-5787"]
[null,null,"Suzie Won-Spiezer","suzie.won@gmail.com","949- 433-4443"]
[20.0,"Coffee Purchaser","Iris Gluzman-Chuang","iris.ken.tma@gmail.com"]
[21.0,"Hospitality:  Meetings & Tours","Laurie Anne Dee","laurie.dee@morganlewis.com"," "]
[22.0,"Kindergarten Liaison","Kim McCann",{"$f":"HYPERLINK(\"mailto:kimmccann77@gmail.com#\",\"kimmccann77@gmail.com\")","v":"kimmccann77@gmail.com"}," "]
[null,null,"Thao Chang"]
[23.0,"Kindergarten SKIP Coordinator","Jennifer Goodwin","jsgoodwinca@yahoo.com"]
[null,null,"Stacey Bach","staceymbach@yahoo.com"]
[24.0,"Library Liaison & Birthday Book Club","Namrata Kongovi",{"$f":"HYPERLINK(\"mailto:n_kongovi@yahoo.com#\",\"n_kongovi@yahoo.com\")","v":"n_kongovi@yahoo.com"}," "]
[25.0,"Book Fair","Linh Powell",{"$f":"HYPERLINK(\"mailto:lp20119@gmail.com#\",\"lp20119@gmail.com\")","v":"lp20119@gmail.com"}," "]
[null,null,"Gloria Henderson","gloriahendy@gmail.com","309-8208"]
[26.0,"Lost and Found ","Keiko Park","kekito912@hotmail.com","227-4944"]
[27.0,"Magic Night","Lyly Tran",{"$f":"HYPERLINK(\"mailto:tran.t.lyly@gmail.com#\",\"tran.t.lyly@gmail.com\")","v":"tran.t.lyly@gmail.com"},"310 270 3194"]
[null,null,"Lydia Hoss",{"$f":"HYPERLINK(\"mailto:lydiahoss@gmail.com#\",\"lydiahoss@gmail.com\")","v":"lydiahoss@gmail.com"},"949 677 7658"]
[28.0,"Memory Tiles","Regina Frank",{"$f":"HYPERLINK(\"mailto:regina_m_frank@yahoo.com#\",\"regina_m_frank@yahoo.com\")","v":"regina_m_frank@yahoo.com"},"832-3948"]
[29.0,"New Family Mentoring","Merrie Mora"," "," "]
[30.0,"Open House Coordinator","Claire Maldonado",{"$f":"HYPERLINK(\"mailto:tierra.verde@live.com#\",\"tierra.verde@live.com\")","v":"tierra.verde@live.com"},"640-9864"]
[null,null,"Sarika Vakil"]
[31.0,"Open House Dinner ","Danny Serna",{"$f":"HYPERLINK(\"mailto:dserna31@att.net#\",\"dserna31@att.net \")","v":"dserna31@att.net "}]
[32.0,"Photography assistants","Jaime Baez",{"$f":"HYPERLINK(\"mailto:jbfotography@gmail.com#\",\"jbfotography@gmail.com\")","v":"jbfotography@gmail.com"},"721-9477"]
[33.0,"Picture Day","Jennifer North","jennifernorth1@yahoo.com","731-6826"]
[34.0,"Poster Club","Claudia Chavez",{"$f":"HYPERLINK(\"mailto:claudinechf@gmail.com#\",\"claudinechf@gmail.com\")","v":"claudinechf@gmail.com"},"560-3180"]
[null,null,"Sarah Vincent",{"$f":"HYPERLINK(\"mailto:sarahbvincent@yahoo.com#\",\"sarahbvincent@yahoo.com\")","v":"sarahbvincent@yahoo.com"},"949-310-8131"]
[35.0,"Publicity-on campus","Anh-Thu La",{"$f":"HYPERLINK(\"mailto:anhthula@hotmail.com#\",\"anhthula@hotmail.com\")","v":"anhthula@hotmail.com"},"230-5811"]
[36.0,"Red Ribbon Coordinator","Susan Lenoir",{"$f":"HYPERLINK(\"mailto:selenoir@gmail.com#\",\"selenoir@gmail.com\")","v":"selenoir@gmail.com"}," "]
[37.0,"Room Parent Coordinator","Vanessa Yoshimura",{"$f":"HYPERLINK(\"mailto:gv.yoshimura@gmail.com#\",\"gv.yoshimura@gmail.com\")","v":"gv.yoshimura@gmail.com"},"609-9830"]
[38.0,"Son Appreciation Night","HEROES/ Bill McCroskey",{"$f":"HYPERLINK(\"mailto:bill_mccroskey@yahoo.com#\",\"bill_mccroskey@yahoo.com\")","v":"bill_mccroskey@yahoo.com"},"949-338-0702"]
[null,null,"Richard Herr",{"$f":"HYPERLINK(\"mailto:bhur3@roadrunner.com#\",\"bhur3@roadrunner.com\")","v":"bhur3@roadrunner.com"},"949-231-0169"]
[39.0,"Star Merchandise","Nicole Dunn",{"$f":"HYPERLINK(\"mailto:g_w_dunn@yahoo.com#\",\"g_w_dunn@yahoo.com\")","v":"g_w_dunn@yahoo.com"}," "]
[40.0,"Talent Show","Stephanie Tom","stephwhited@gmail.com"," "]
[41.0,"Teacher Appreciation Luncheon","Chantel Collins",{"$f":"HYPERLINK(\"mailto:kevinandchantel@hotmail.com#\",\"kevinandchantel@hotmail.com\")","v":"kevinandchantel@hotmail.com"}]
[42.0,"Teacher Holiday Luncheon","Kim McCann",{"$f":"HYPERLINK(\"mailto:kimmccann77@gmail.com#\",\"kimmccann77@gmail.com\")","v":"kimmccann77@gmail.com"},"815-3244"]
[43.0,"Tustin Public Schools Foundation Liaison","Shannon Valentino","shantino77@gmail.com","654-9498"]
[44.0,"Used Uniforms Coordinator","Deepa Srinivasa",{"$f":"HYPERLINK(\"mailto:deepamlsrini@gmail.com#\",\"deepamlsrini@gmail.com\")","v":"deepamlsrini@gmail.com"},"389-1721"]
[45.0,"Vision & Hearing","Michelle Olsen",{"$f":"HYPERLINK(\"mailto:theolsenz@yahoo.com#\",\"theolsenz@yahoo.com\")","v":"theolsenz@yahoo.com"},"832-1443"]
[46.0,"Volunteers/Communication Coord"," "," "," "]
[47.0,"Women in History","Dawn McRitchie",{"$f":"HYPERLINK(\"mailto:dmcritchie@usa.net#\",\"dmcritchie@usa.net\")","v":"dmcritchie@usa.net"},"731-2556"]
[48.0,"Yearbook","Bessie Cheng",{"$f":"HYPERLINK(\"mailto:bessbeee@aol.com#\",\"bessbeee@aol.com\")","v":"bessbeee@aol.com"},"878-1660"]
[null,null,"Emi Embler",{"$f":"HYPERLINK(\"mailto:beaver2001@gmail.com#\",\"beaver2001@gmail.com\")","v":"beaver2001@gmail.com"}," "]
[null,null,"Patty Lee",{"$f":"HYPERLINK(\"mailto:m8202020@rocketmail.com#\",\"m8202020@rocketmail.com\")","v":"m8202020@rocketmail.com"},"949-275-7279"]
[50.0,"Auditor"," "]
[51.0,"Grant Writing Chair","Lam Huynh",{"$f":"HYPERLINK(\"mailto:dr.lamhuynh@gmail.com#\",\"dr.lamhuynh@gmail.com\")","v":"dr.lamhuynh@gmail.com"}," "]

{"sheet":"Sorted by Chair First Name","index":1,"n_rows":67,"n_cols":5,"rows_kept":67,"cut":false,"hidden":false,"merged":[]}
[null,"Committee","2017-2018","Email","Phone"]
[1.0,"5th Grade Boys Guy Stuff Night"," "," "," "]
[4.0,"5th Grade Gift"," "," "," "]
[46.0,"Volunteers/Communication Coord"," "," "," "]
[50.0,"Auditor"," "]
[35.0,"Publicity-on campus","Anh-Thu La",{"$f":"HYPERLINK(\"mailto:anhthula@hotmail.com#\",\"anhthula@hotmail.com\")","v":"anhthula@hotmail.com"},"230-5811"]
[3.0,"5th Grade Tea","Antoinette Hewitt",{"$f":"HYPERLINK(\"mailto:antoinette.hewitt@kutakrock.com#\",\"antoinette.hewitt@kutakrock.com\")","v":"antoinette.hewitt@kutakrock.com"},"917-9873"]
[48.0,"Yearbook","Bessie Cheng",{"$f":"HYPERLINK(\"mailto:bessbeee@aol.com#\",\"bessbeee@aol.com\")","v":"bessbeee@aol.com"},"878-1660"]
[38.0,"Son Appreciation Night","Bill McCroskey (HEROES)",{"$f":"HYPERLINK(\"mailto:bill_mccroskey@yahoo.com#\",\"bill_mccroskey@yahoo.com\")","v":"bill_mccroskey@yahoo.com"},"949-338-0702"]
[19.0,"Garden and Nature Center","Brandon Dove",{"$f":"HYPERLINK(\"mailto:tmagarden@ocorganicgardenblog.com#\",\"brandon.dove@gmail.com\")","v":"brandon.dove@gmail.com"},"932-5787"]
[null,null,"Caitlin Reid"]
[17.0,"F.U.D.G.E. Night","Chandrea Dixon",{"$f":"HYPERLINK(\"mailto:chandreadixon@gmail.com#\",\"chandreadixon@gmail.com\")","v":"chandreadixon@gmail.com"}," "]
[null,null,"Chantel Collins",{"$f":"HYPERLINK(\"mailto:kevinandchantel@hotmail.com#\",\"kevinandchantel@hotmail.com\")","v":"kevinandchantel@hotmail.com"},"669-4355"]
[8.0,"Cards for Cash","Chantel Collins","kevinandchantel@hotmail.com","669-4355"]
[41.0,"Teacher Appreciation Luncheon","Chantel Collins","kevinandchantel@hotmail.com"]
[7.0,"Box Tops for Education","Cindy Kanchanapoomi","cckanchan@yahoo.com"]
[30.0,"Open House Coordinator","Claire Maldonado",{"$f":"HYPERLINK(\"mailto:tierra.verde@live.com#\",\"tierra.verde@live.com\")","v":"tierra.verde@live.com"},"640-9864"]
[10.0,"Copy Coordinator","Claudia Chavez",{"$f":"HYPERLINK(\"mailto:claudinechf@gmail.com#\",\"claudinechf@gmail.com\")","v":"claudinechf@gmail.com"},"640-1125"]
[34.0,"Poster Club","Claudia Chavez","claudinechf@gmail.com","560-3180"]
[31.0,"Open House Dinner ","Danny Serna",{"$f":"HYPERLINK(\"mailto:dserna31@att.net#\",\"dserna31@att.net \")","v":"dserna31@att.net "}]
[47.0,"Women in History","Dawn McRitchie",{"$f":"HYPERLINK(\"mailto:dmcritchie@usa.net#\",\"dmcritchie@usa.net\")","v":"dmcritchie@usa.net"},"731-2556"]
[44.0,"Used Uniforms Coordinator","Deepa Srinivasa",{"$f":"HYPERLINK(\"mailto:deepamlsrini@gmail.com#\",\"deepamlsrini@gmail.com\")","v":"deepamlsrini@gmail.com"},"389-1721"]
[null,null,"Emi Embler",{"$f":"HYPERLINK(\"mailto:beaver2001@gmail.com#\",\"beaver2001@gmail.com\")","v":"beaver2001@gmail.com"}," "]
[null,null,"Gina Rae",{"$f":"HYPERLINK(\"mailto:ginamarierae@gmail.com#\",\"ginamarierae@gmail.com\")","v":"ginamarierae@gmail.com"}]
[null,null,"Gloria Henderson","gloriahendy@gmail.com","309-8208"]
[9.0,"Community Service","Helen Kwon",{"$f":"HYPERLINK(\"mailto:helenhkwon@yahoo.com#\",\"helenhkwon@yahoo.com\")","v":"helenhkwon@yahoo.com"}," "]
[20.0,"Coffee Purchaser","Iris Gluzman-Chuang","iris.ken.tma@gmail.com"]
[32.0,"Photography assistants","Jaime Baez",{"$f":"HYPERLINK(\"mailto:jbfotography@gmail.com#\",\"jbfotography@gmail.com\")","v":"jbfotography@gmail.com"},"721-9477"]
[23.0,"Kindergarten SKIP Coordinator","Jennifer Goodwin","jsgoodwinca@yahoo.com"]
[33.0,"Picture Day","Jennifer North","jennifernorth1@yahoo.com","731-6826"]
[2.0,"5th Grade Promotion","Kari Williams","simonsen.kari@gmail.com"]
[null,null,"Kate Kersten",{"$f":"HYPERLINK(\"mailto:katekersten24@gmail.com#\",\"katekersten24@gmail.com\")","v":"katekersten24@gmail.com"},"313-6163"]
[26.0,"Lost and Found ","Keiko Park","kekito912@hotmail.com","227-4944"]
[22.0,"Kindergarten Liaison","Kim McCann",{"$f":"HYPERLINK(\"mailto:kimmccann77@gmail.com#\",\"kimmccann77@gmail.com\")","v":"kimmccann77@gmail.com"}," "]
[42.0,"Teacher Holiday Luncheon","Kim McCann","kimmccann77@gmail.com","815-3244"]
[51.0,"Grant Writing Chair","Lam Huynh",{"$f":"HYPERLINK(\"mailto:dr.lamhuynh@gmail.com#\",\"dr.lamhuynh@gmail.com\")","v":"dr.lamhuynh@gmail.com"}," "]
[null,null,"Lauren Hilborn",{"$f":"HYPERLINK(\"mailto:8hilborn@sbcglobal.net#\",\"8hilborn@sbcglobal.net\")","v":"8hilborn@sbcglobal.net"},"393-6929"]
[21.0,"Hospitality:  Meetings & Tours","Laurie Anne Dee","laurie.dee@morganlewis.com"," "]
[14.0,"Disaster Preparedness","Laurie Brooks",{"$f":"HYPERLINK(\"mailto:laurie.brooks@cox.net#\",\"laurie.brooks@cox.net\")","v":"laurie.brooks@cox.net"},"389-6775"]
[null,null,"Lily Castillo",{"$f":"HYPERLINK(\"mailto:castillofam24@gmail.com#\",\"castillofam24@gmail.com\")","v":"castillofam24@gmail.com"},"949 648 2286"]
[25.0,"Book Fair","Linh Powell",{"$f":"HYPERLINK(\"mailto:lp20119@gmail.com#\",\"lp20119@gmail.com\")","v":"lp20119@gmail.com"}," "]
[null,null,"Lydia Hoss",{"$f":"HYPERLINK(\"mailto:lydiahoss@gmail.com#\",\"lydiahoss@gmail.com\")","v":"lydiahoss@gmail.com"},"949 677 7658"]
[27.0,"Magic Night","Lyly Tran",{"$f":"HYPERLINK(\"mailto:tran.t.lyly@gmail.com#\",\"tran.t.lyly@gmail.com\")","v":"tran.t.lyly@gmail.com"},"310 270 3194"]
[16.0,"Family Nights","Melissa Brosch",{"$f":"HYPERLINK(\"mailto:mbrosch@calvarylife.org#\",\"mbrosch@calvarylife.org\")","v":"mbrosch@calvarylife.org"}]
[29.0,"New Family Mentoring","Merrie Mora"," "," "]
[13.0,"Directory","Michel Mikhael",{"$f":"HYPERLINK(\"mailto:celaughlin@pacbell.net#\",\"michel_mikhael@hotmail.com\")","v":"michel_mikhael@hotmail.com"}]
[45.0,"Vision & Hearing","Michelle Olsen",{"$f":"HYPERLINK(\"mailto:theolsenz@yahoo.com#\",\"theolsenz@yahoo.com\")","v":"theolsenz@yahoo.com"},"832-1443"]
[24.0,"Library Liaison & Birthday Book Club","Namrata Kongovi",{"$f":"HYPERLINK(\"mailto:n_kongovi@yahoo.com#\",\"n_kongovi@yahoo.com\")","v":"n_kongovi@yahoo.com"}," "]
[5.0,"After School Enrichment","Naomi Halili-Dove",{"$f":"HYPERLINK(\"mailto:naomidove@mac.com#\",\"naomidove@mac.com\")","v":"naomidove@mac.com"},"932-5786"]
[39.0,"Star Merchandise","Nicole Dunn",{"$f":"HYPERLINK(\"mailto:g_w_dunn@yahoo.com#\",\"g_w_dunn@yahoo.com\")","v":"g_w_dunn@yahoo.com"}," "]
[11.0,"Dining for Dollars","Nicole Hodge",{"$f":"HYPERLINK(\"mailto:nicolesemail@gmail.com#\",\"nicolesemail@gmail.com\")","v":"nicolesemail@gmail.com"},"669-2976"]
[null,null,"Patty Lee",{"$f":"HYPERLINK(\"mailto:m8202020@rocketmail.com#\",\"m8202020@rocketmail.com\")","v":"m8202020@rocketmail.com"},"949-275-7279"]
[28.0,"Memory Tiles","Regina Frank",{"$f":"HYPERLINK(\"mailto:regina_m_frank@yahoo.com#\",\"regina_m_frank@yahoo.com\")","v":"regina_m_frank@yahoo.com"},"832-3948"]
[null,null,"Richard Herr",{"$f":"HYPERLINK(\"mailto:bhur3@roadrunner.com#\",\"bhur3@roadrunner.com\")","v":"bhur3@roadrunner.com"},"949-231-0169"]
[null,null,"Sarah Vincent",{"$f":"HYPERLINK(\"mailto:sarahbvincent@yahoo.com#\",\"sarahbvincent@yahoo.com\")","v":"sarahbvincent@yahoo.com"},"949-310-8131"]
[null,null,"Sarika Vakil"]
[12.0,"Dinosaur Dash","Shannon Valentino","shantino77@gmail.com","654-9498"]
[43.0,"Tustin Public Schools Foundation Liaison","Shannon Valentino","shantino77@gmail.com","654-9498"]
[null,null,"Stacey Bach","staceymbach@yahoo.com"]
[18.0,"Foreign Language Program","Stephanie Garcia",{"$f":"HYPERLINK(\"mailto:stephbowers@yahoo.com#\",\"stephbowers@yahoo.com\")","v":"stephbowers@yahoo.com"},"244-7775"]
[40.0,"Talent Show","Stephanie Tom","stephwhited@gmail.com"," "]
[6.0,"Back to School Night Event Coordinator","Sue Martin",{"$f":"HYPERLINK(\"mailto:suemartin6710@gmail.com#\",\"suemartin6710@gmail.com\")","v":"suemartin6710@gmail.com"},"832-8640"]
[36.0,"Red Ribbon Coordinator","Susan Lenoir",{"$f":"HYPERLINK(\"mailto:selenoir@gmail.com#\",\"selenoir@gmail.com\")","v":"selenoir@gmail.com"}," "]
[null,null,"Suzie Won-Spiezer","suzie.won@gmail.com","949- 433-4443"]
[null,null,"Thao Chang"]
[37.0,"Room Parent Coordinator","Vanessa Yoshimura",{"$f":"HYPERLINK(\"mailto:gv.yoshimura@gmail.com#\",\"gv.yoshimura@gmail.com\")","v":"gv.yoshimura@gmail.com"},"609-9830"]
[15.0,"Electronic Sign"]

{"sheet":"TMA PTO Exceutive Board","index":2,"n_rows":18,"n_cols":6,"rows_kept":18,"cut":false,"hidden":false,"merged":[]}
[null,"PTO Executive Board"]
[{"$f":"A1+1","v":1},"President","Eulynn Gargano",{"$f":"HYPERLINK(\"mailto:eulynngargano@gmail.com#\",\"eulynngargano@gmail.com\")","v":"eulynngargano@gmail.com"},"tma.pto.president@gmail.com"," "]
[2,"Secretary","Stacey Bach",{"$f":"HYPERLINK(\"mailto:staceymbach@yahoo.com#\",\"staceymbach@yahoo.com\")","v":"staceymbach@yahoo.com"},null,"544-6906"]
[3.0,"VP Membership","Aimee Kelly",{"$f":"HYPERLINK(\"mailto:aimee.kelly@cox.net#\",\"aimee.kelly@cox.net\")","v":"aimee.kelly@cox.net"},"tmaclub365@gmail.com","731-8930"]
[null,null,"Merrie Mora",{"$f":"HYPERLINK(\"mailto:merrie.mora@gmail.com#\",\"merrie.mora@gmail.com\")","v":"merrie.mora@gmail.com"},"tmaclub365@gmail.com"," "]
[4.0,"VP Ways & Means","Kerry Tully",{"$f":"HYPERLINK(\"mailto:tullyfam@sbcglobal.net#\",\"tullyfam@sbcglobal.net\")","v":"tullyfam@sbcglobal.net"},null," "]
[null,null,"Ann Falchetti",{"$f":"HYPERLINK(\"mailto:annmullio@aol.com#\",\"annmullio@aol.com\")","v":"annmullio@aol.com"},null," "]
[5.0,"VP Corporate Matching","Jessica Pham",{"$f":"HYPERLINK(\"mailto:jessica3pham@gmail.com#\",\"jessica3pham@gmail.com\")","v":"jessica3pham@gmail.com"},null," "]
[6.0,"VP Technology","Mary Pham",{"$f":"HYPERLINK(\"mailto:mphamrx@gmail.com#\",\"mphamrx@gmail.com\")","v":"mphamrx@gmail.com"},null," "]
[7.0,"Parliamentarian","Kate Kersten",{"$f":"HYPERLINK(\"mailto:katekersten24@gmail.com#\",\"katekersten24@gmail.com\")","v":"katekersten24@gmail.com"},null,"313-6163"]
[{"$f":"A10+1","v":8},"Treasurer","Laura Euhus",{"$f":"HYPERLINK(\"mailto:laura.euhus@att.net#\",\"laura.euhus@att.net\")","v":"laura.euhus@att.net"},null," "]
[9.0,"Asst Treasurer Payables","Leah Katnik",{"$f":"HYPERLINK(\"mailto:leah.katnik@gmail.com#\",\"leah.katnik@gmail.com\")","v":"leah.katnik@gmail.com"},null,"200-5324"]
[null,null,"Gwen Stringham",{"$f":"HYPERLINK(\"mailto:gwennielam@yahoo.com#\",\"gwennielam@yahoo.com\")","v":"gwennielam@yahoo.com"},null,"608-3924"]
[{"$f":"A12+1","v":10},"Asst Treasurer Receivables","Lynne Petersen",{"$f":"HYPERLINK(\"mailto:kaliox@me.com#\",\"kaliox@me.com\")","v":"kaliox@me.com"},null,"679-4011"]
[{"$f":"A14+1","v":11},"Heroes","Bill McCroskey",{"$f":"HYPERLINK(\"mailto:bill_mccroskey@yahoo.com#\",\"bill_mccroskey@yahoo.com\")","v":"bill_mccroskey@yahoo.com"}]
[null,null,"Richard Herr",{"$f":"HYPERLINK(\"mailto:bhur3@roadrunner.com#\",\"bhur3@roadrunner.com\")","v":"bhur3@roadrunner.com"},null,"949-231-0169"]
[12.0,"Teacher","Sandy Foreman",{"$f":"HYPERLINK(\"mailto:sforeman@tustin.k12.ca.us#\",\"sforeman@tustin.k12.ca.us\")","v":"sforeman@tustin.k12.ca.us"}]
[13.0,"Principal","Sharon Maeda",{"$f":"HYPERLINK(\"mailto:smaeda@tustin.k12.ca.us#\",\"smaeda@tustin.k12.ca.us\")","v":"smaeda@tustin.k12.ca.us"},null," "]